[Event "Titled Tuesday Blitz July 4 Late 2023"]
[White "Halkias, Stelios"]
[Black "Poeta, Caio Medeiros"]
[WhiteFideId "4201809"]
[BlackFideId "2142660"]
[WhiteElo "2768"]
[BlackElo "2520"]
[Result "1-0"]
[Round "2"]
[TimeControl "180+2"]
[Date "2023.07.04"]
[WhiteClock "0:00:53"]
[BlackClock "0:00:37"]
[Board "50"]

1. Nf3 {[%clk 0:02:56]}  Nf6 {[%clk 0:02:58]} 2. c4 {[%clk 0:02:56]}  c5 {[%clk 0:02:56]} 3. Nc3 {[%clk 0:02:55]}  g6 {[%clk 0:02:56]} 4. e4 {[%clk 0:02:52]}  Bg7 {[%clk 0:02:55]} 5. d4 {[%clk 0:02:52]}  d6 {[%clk 0:02:53]} 6. d5 {[%clk 0:02:51]}  O-O {[%clk 0:02:53]} 7. h3 {[%clk 0:02:51]}  a6 {[%clk 0:02:53]} 8. Bd3 {[%clk 0:02:51]}  b5 {[%clk 0:02:52]} 9. O-O {[%clk 0:02:45]}  bxc4 {[%clk 0:02:41]} 10. Bxc4 {[%clk 0:02:45]}  Nbd7 {[%clk 0:02:41]} 11. a4 {[%clk 0:02:44]}  a5 {[%clk 0:02:40]} 12. Re1 {[%clk 0:02:43]}  Nb6 {[%clk 0:02:36]} 13. Ba2 {[%clk 0:02:43]}  Nfd7 {[%clk 0:02:35]} 14. Bg5 {[%clk 0:02:42]}  Ne5 {[%clk 0:02:34]} 15. Nxe5 {[%clk 0:02:41]}  Bxe5 {[%clk 0:02:33]} 16. Qd2 {[%clk 0:02:41]}  Bd7 {[%clk 0:02:27]} 17. f4 {[%clk 0:02:36]}  Bd4+ {[%clk 0:02:26]} 18. Kh1 {[%clk 0:02:35]}  Nxa4 {[%clk 0:02:26]} 19. Nxa4 {[%clk 0:02:28]}  Bxa4 {[%clk 0:02:25]} 20. e5 {[%clk 0:02:28]}  f6 {[%clk 0:02:10]} 21. Bh6 {[%clk 0:02:27]}  Re8 {[%clk 0:02:09]} 22. Bc4 {[%clk 0:02:22]}  Bd7 {[%clk 0:02:02]} 23. e6 {[%clk 0:02:19]}  Bc8 {[%clk 0:02:00]} 24. f5 {[%clk 0:02:19]}  Rb8 {[%clk 0:01:49]} 25. fxg6 {[%clk 0:02:08]}  hxg6 {[%clk 0:01:44]} 26. Qd3 {[%clk 0:01:55]}  Kh7 {[%clk 0:01:39]} 27. Bc1 {[%clk 0:01:39]}  f5 {[%clk 0:01:21]} 28. Qd2 {[%clk 0:01:30]}  Bg7 {[%clk 0:01:14]} 29. Ra3 {[%clk 0:01:29]}  Rh8 {[%clk 0:01:04]} 30. Rg3 {[%clk 0:01:24]}  Rb4 {[%clk 0:00:58]} 31. Qg5 {[%clk 0:01:16]}  Qe8 {[%clk 0:00:58]} 32. Bd3 {[%clk 0:01:15]}  Rf8 {[%clk 0:00:47]} 33. Rf1 {[%clk 0:01:13]}  Rf6 {[%clk 0:00:46]} 34. Rxf5 {[%clk 0:01:04]}  Rd4 {[%clk 0:00:37]} 35. Rxf6 {[%clk 0:00:59]}  Bxf6 {[%clk 0:00:38]} 36. Qh6+ {[%clk 0:00:58]}  Kg8 {[%clk 0:00:38]} 37. Bxg6 {[%clk 0:00:55]}  Rd1+ {[%clk 0:00:38]} 38. Kh2 {[%clk 0:00:54]}  Be5 {[%clk 0:00:37]} 39. Bf7# {[%clk 0:00:53]} 1-0


[Site "https://www.chess.com"]

[Event "Titled Tuesday Blitz July 4 Late 2023"]
[White "Arencibia Monduy, Antonio"]
[Black "Milikow, Yoav"]
[WhiteFideId "3507939"]
[BlackFideId "2822237"]
[WhiteElo "2520"]
[BlackElo "2768"]
[Result "1-0"]
[Round "2"]
[TimeControl "180+2"]
[Date "2023.07.04"]
[WhiteClock "0:00:03"]
[BlackClock "0:00:17"]
[Board "51"]

1. e4 {[%clk 0:03:00]}  e6 {[%clk 0:02:52]} 2. d4 {[%clk 0:02:59]}  d5 {[%clk 0:02:53]} 3. e5 {[%clk 0:02:59]}  c5 {[%clk 0:02:53]} 4. c3 {[%clk 0:03:00]}  Qb6 {[%clk 0:02:53]} 5. Nf3 {[%clk 0:03:00]}  Nc6 {[%clk 0:02:53]} 6. Bd3 {[%clk 0:03:00]}  cxd4 {[%clk 0:02:49]} 7. O-O {[%clk 0:03:00]}  Bd7 {[%clk 0:02:50]} 8. a3 {[%clk 0:03:00]}  Nge7 {[%clk 0:02:48]} 9. b4 {[%clk 0:02:58]}  dxc3 {[%clk 0:02:44]} 10. Nxc3 {[%clk 0:02:58]}  Ng6 {[%clk 0:02:44]} 11. Re1 {[%clk 0:02:57]}  Be7 {[%clk 0:02:41]} 12. Bb2 {[%clk 0:02:57]}  Nf4 {[%clk 0:02:38]} 13. Na4 {[%clk 0:02:32]}  Qd8 {[%clk 0:02:36]} 14. Bc2 {[%clk 0:02:20]}  g5 {[%clk 0:02:30]} 15. Rc1 {[%clk 0:02:11]}  g4 {[%clk 0:02:25]} 16. Nd4 {[%clk 0:01:54]}  h5 {[%clk 0:02:14]} 17. Nc5 {[%clk 0:01:42]}  Bxc5 {[%clk 0:02:13]} 18. bxc5 {[%clk 0:01:41]}  a6 {[%clk 0:02:07]} 19. Rb1 {[%clk 0:01:27]}  Rb8 {[%clk 0:02:03]} 20. Bc1 {[%clk 0:01:27]}  Ng6 {[%clk 0:01:54]} 21. Nxc6 {[%clk 0:01:03]}  Bxc6 {[%clk 0:01:52]} 22. Qd4 {[%clk 0:00:37]}  O-O {[%clk 0:01:46]} 23. Bh6 {[%clk 0:00:35]}  Re8 {[%clk 0:01:45]} 24. h3 {[%clk 0:00:31]}  Qh4 {[%clk 0:01:37]} 25. g3 {[%clk 0:00:18]}  Qxh3 {[%clk 0:01:30]} 26. Bd3 {[%clk 0:00:17]}  Bb5 {[%clk 0:01:02]} 27. Rxb5 {[%clk 0:00:17]}  axb5 {[%clk 0:01:02]} 28. Bf1 {[%clk 0:00:17]}  Nh4 {[%clk 0:01:03]} 29. gxh4 {[%clk 0:00:15]}  Qf3 {[%clk 0:01:03]} 30. Re3 {[%clk 0:00:10]}  Qf5 {[%clk 0:00:52]} 31. Bd3 {[%clk 0:00:10]}  Kh7 {[%clk 0:00:46]} 32. Bxf5+ {[%clk 0:00:10]}  exf5 {[%clk 0:00:47]} 33. Bf4 {[%clk 0:00:07]}  Kg6 {[%clk 0:00:46]} 34. Qxd5 {[%clk 0:00:07]}  Rbd8 {[%clk 0:00:46]} 35. Qxb7 {[%clk 0:00:07]}  Re6 {[%clk 0:00:46]} 36. Qxb5 {[%clk 0:00:07]}  Rd4 {[%clk 0:00:45]} 37. Bg5 {[%clk 0:00:04]}  f4 {[%clk 0:00:42]} 38. Qb2 {[%clk 0:00:04]}  Rc4 {[%clk 0:00:40]} 39. Qb1+ {[%clk 0:00:04]}  Kg7 {[%clk 0:00:40]} 40. Rb3 {[%clk 0:00:03]}  Rxe5 {[%clk 0:00:39]} 41. Rb6 {[%clk 0:00:03]}  Ree4 {[%clk 0:00:36]} 42. Bh6+ {[%clk 0:00:03]}  Kh7 {[%clk 0:00:35]} 43. Rc6 {[%clk 0:00:02]}  Kg8 {[%clk 0:00:29]} 44. Kg2 {[%clk 0:00:02]}  Rcd4 {[%clk 0:00:26]} 45. Rc8+ {[%clk 0:00:03]}  Kh7 {[%clk 0:00:26]} 46. Bg5 {[%clk 0:00:03]}  Kg7 {[%clk 0:00:23]} 47. Qb8 {[%clk 0:00:04]}  f3+ {[%clk 0:00:21]} 48. Kg3 {[%clk 0:00:04]}  Rd1 {[%clk 0:00:21]} 49. Rg8+ {[%clk 0:00:04]}  Kh7 {[%clk 0:00:21]} 50. Rh8+ {[%clk 0:00:04]}  Kg6 {[%clk 0:00:21]} 51. Qg8+ {[%clk 0:00:05]}  Kf5 {[%clk 0:00:21]} 52. Qxf7+ {[%clk 0:00:05]}  Ke5 {[%clk 0:00:22]} 53. Re8+ {[%clk 0:00:05]}  Kd4 {[%clk 0:00:21]} 54. Qd7+ {[%clk 0:00:05]}  Kc3 {[%clk 0:00:20]} 55. Bf6+ {[%clk 0:00:05]}  Kc2 {[%clk 0:00:17]} 56. Qxd1+ {[%clk 0:00:03]} 1-0


[Site "https://www.chess.com"]

[Event "Titled Tuesday Blitz July 4 Late 2023"]
[White "Morefield, Jason"]
[Black "Sanchez Enriquez, Oscar Gerardo"]
[WhiteFideId "30920825"]
[BlackFideId "5106311"]
[WhiteElo "2753"]
[BlackElo "2518"]
[Result "1-0"]
[Round "2"]
[TimeControl "180+2"]
[Date "2023.07.04"]
[WhiteClock "0:00:05"]
[BlackClock "0:00:26"]
[Board "52"]

1. d4 {[%clk 0:03:00]}  e6 {[%clk 0:03:00]} 2. e4 {[%clk 0:03:00]}  d5 {[%clk 0:03:00]} 3. Nc3 {[%clk 0:03:00]}  Bb4 {[%clk 0:03:00]} 4. e5 {[%clk 0:03:00]}  c5 {[%clk 0:03:00]} 5. a3 {[%clk 0:03:00]}  Bxc3+ {[%clk 0:03:00]} 6. bxc3 {[%clk 0:03:01]}  Qa5 {[%clk 0:03:00]} 7. Bd2 {[%clk 0:03:00]}  Qa4 {[%clk 0:02:58]} 8. h4 {[%clk 0:02:59]}  Ne7 {[%clk 0:02:57]} 9. h5 {[%clk 0:02:58]}  h6 {[%clk 0:02:57]} 10. Bd3 {[%clk 0:02:53]}  cxd4 {[%clk 0:02:43]} 11. Rh4 {[%clk 0:02:41]}  Nbc6 {[%clk 0:02:39]} 12. Nf3 {[%clk 0:02:40]}  Nf5 {[%clk 0:02:31]} 13. Rf4 {[%clk 0:02:28]}  Bd7 {[%clk 0:02:27]} 14. cxd4 {[%clk 0:02:11]}  Rc8 {[%clk 0:02:24]} 15. Kf1 {[%clk 0:02:03]}  Na5 {[%clk 0:02:18]} 16. Bxa5 {[%clk 0:01:54]}  Qxa5 {[%clk 0:02:17]} 17. Qe1 {[%clk 0:01:33]}  Qc3 {[%clk 0:02:09]} 18. Qxc3 {[%clk 0:01:28]}  Rxc3 {[%clk 0:02:09]} 19. Ke1 {[%clk 0:01:28]}  O-O {[%clk 0:01:56]} 20. Kd2 {[%clk 0:01:26]}  Rfc8 {[%clk 0:01:55]} 21. g4 {[%clk 0:01:22]}  Ne7 {[%clk 0:01:54]} 22. Rg1 {[%clk 0:01:10]}  Ba4 {[%clk 0:01:53]} 23. Ne1 {[%clk 0:01:04]}  Kf8 {[%clk 0:01:34]} 24. g5 {[%clk 0:00:55]}  hxg5 {[%clk 0:01:35]} 25. Rxg5 {[%clk 0:00:54]}  a6 {[%clk 0:01:25]} 26. Rfg4 {[%clk 0:00:39]}  Nf5 {[%clk 0:01:18]} 27. Bxf5 {[%clk 0:00:29]}  exf5 {[%clk 0:01:17]} 28. Rg3 {[%clk 0:00:26]}  Rxg3 {[%clk 0:01:12]} 29. Rxg3 {[%clk 0:00:27]}  Bd7 {[%clk 0:01:08]} 30. Nd3 {[%clk 0:00:25]}  b6 {[%clk 0:01:08]} 31. Nb4 {[%clk 0:00:22]}  Be6 {[%clk 0:01:08]} 32. Nxa6 {[%clk 0:00:21]}  Rc4 {[%clk 0:01:02]} 33. Rd3 {[%clk 0:00:20]}  f4 {[%clk 0:01:00]} 34. c3 {[%clk 0:00:13]}  Ra4 {[%clk 0:00:59]} 35. Nb4 {[%clk 0:00:13]}  Rxa3 {[%clk 0:00:59]} 36. Rf3 {[%clk 0:00:13]}  Kg8 {[%clk 0:00:56]} 37. Rxf4 {[%clk 0:00:13]}  Kh7 {[%clk 0:00:57]} 38. Rh4 {[%clk 0:00:13]}  Kh6 {[%clk 0:00:57]} 39. f4 {[%clk 0:00:13]}  Ra5 {[%clk 0:00:44]} 40. Kc2 {[%clk 0:00:12]}  Bf5+ {[%clk 0:00:43]} 41. Kb3 {[%clk 0:00:12]}  Be4 {[%clk 0:00:43]} 42. c4 {[%clk 0:00:09]}  dxc4+ {[%clk 0:00:40]} 43. Kxc4 {[%clk 0:00:10]}  Ra1 {[%clk 0:00:38]} 44. d5 {[%clk 0:00:10]}  Rc1+ {[%clk 0:00:38]} 45. Kd4 {[%clk 0:00:11]}  Bg2 {[%clk 0:00:39]} 46. d6 {[%clk 0:00:09]}  Rd1+ {[%clk 0:00:39]} 47. Kc4 {[%clk 0:00:10]}  Bf1+ {[%clk 0:00:39]} 48. Kc3 {[%clk 0:00:09]}  Bb5 {[%clk 0:00:37]} 49. Rh2 {[%clk 0:00:08]}  Rc1+ {[%clk 0:00:36]} 50. Rc2 {[%clk 0:00:07]}  Rf1 {[%clk 0:00:37]} 51. Nd5 {[%clk 0:00:05]}  Ba4 {[%clk 0:00:34]} 52. Ra2 {[%clk 0:00:04]}  Bc6 {[%clk 0:00:34]} 53. Nxb6 {[%clk 0:00:04]}  Rxf4 {[%clk 0:00:34]} 54. d7 {[%clk 0:00:04]}  Bxd7 {[%clk 0:00:32]} 55. Nxd7 {[%clk 0:00:05]}  Rf5 {[%clk 0:00:32]} 56. Rg2 {[%clk 0:00:03]}  Rxh5 {[%clk 0:00:30]} 57. Kd4 {[%clk 0:00:03]}  Rh1 {[%clk 0:00:30]} 58. Kd5 {[%clk 0:00:03]}  Rd1+ {[%clk 0:00:29]} 59. Kc6 {[%clk 0:00:04]}  g6 {[%clk 0:00:29]} 60. Nf6 {[%clk 0:00:03]}  Kg7 {[%clk 0:00:30]} 61. Ne4 {[%clk 0:00:03]}  Re1 {[%clk 0:00:30]} 62. Kd5 {[%clk 0:00:03]}  Rd1+ {[%clk 0:00:30]} 63. Rd2 {[%clk 0:00:03]}  Ra1 {[%clk 0:00:30]} 64. Nd6 {[%clk 0:00:03]}  Ra5+ {[%clk 0:00:30]} 65. Ke4 {[%clk 0:00:03]}  Ra4+ {[%clk 0:00:31]} 66. Rd4 {[%clk 0:00:03]}  Ra1 {[%clk 0:00:32]} 67. Rc4 {[%clk 0:00:03]}  Re1+ {[%clk 0:00:32]} 68. Kd5 {[%clk 0:00:04]}  Rd1+ {[%clk 0:00:33]} 69. Kc6 {[%clk 0:00:04]}  g5 {[%clk 0:00:33]} 70. Kd7 {[%clk 0:00:04]}  Kg6 {[%clk 0:00:34]} 71. Ke7 {[%clk 0:00:04]}  Re1 {[%clk 0:00:34]} 72. Nxf7 {[%clk 0:00:04]}  g4 {[%clk 0:00:33]} 73. Rxg4+ {[%clk 0:00:04]}  Kf5 {[%clk 0:00:34]} 74. Rg5+ {[%clk 0:00:04]}  Kf4 {[%clk 0:00:34]} 75. e6 {[%clk 0:00:05]}  Ra1 {[%clk 0:00:32]} 76. Kf6 {[%clk 0:00:05]}  Ra5 {[%clk 0:00:26]} 77. Rxa5 {[%clk 0:00:05]} 1-0


[Site "https://www.chess.com"]

[Event "Titled Tuesday Blitz July 4 Late 2023"]
[White "Fernandez Guillen, Ernesto J."]
[Black "Mazarini41"]
[WhiteFideId "3512428"]
[WhiteElo "2726"]
[BlackElo "2513"]
[Result "1-0"]
[Round "2"]
[TimeControl "180+2"]
[Date "2023.07.04"]
[WhiteClock "0:02:13"]
[BlackClock "0:00:54"]
[Board "55"]

1. e4 {[%clk 0:03:00]}  e5 {[%clk 0:02:57]} 2. Nf3 {[%clk 0:02:46]}  Nc6 {[%clk 0:02:57]} 3. d4 {[%clk 0:02:43]}  exd4 {[%clk 0:02:56]} 4. Bc4 {[%clk 0:02:42]}  Nf6 {[%clk 0:02:50]} 5. O-O {[%clk 0:02:41]}  Nxe4 {[%clk 0:02:49]} 6. Re1 {[%clk 0:02:42]}  d5 {[%clk 0:02:49]} 7. Bxd5 {[%clk 0:02:43]}  Qxd5 {[%clk 0:02:49]} 8. Nc3 {[%clk 0:02:44]}  Qa5 {[%clk 0:02:48]} 9. Nxe4 {[%clk 0:02:45]}  Be6 {[%clk 0:02:48]} 10. Bd2 {[%clk 0:02:46]}  Qd5 {[%clk 0:02:37]} 11. Bg5 {[%clk 0:02:41]}  h6 {[%clk 0:02:21]} 12. Bf6 {[%clk 0:02:38]}  Qf5 {[%clk 0:02:08]} 13. Nxd4 {[%clk 0:02:36]}  Nxd4 {[%clk 0:02:06]} 14. Qxd4 {[%clk 0:02:37]}  Be7 {[%clk 0:01:24]} 15. Bxe7 {[%clk 0:02:23]}  Kxe7 {[%clk 0:01:24]} 16. Qb4+ {[%clk 0:02:24]}  Ke8 {[%clk 0:01:21]} 17. Qxb7 {[%clk 0:02:24]}  Rc8 {[%clk 0:00:54]} 18. Nd6+ {[%clk 0:02:13]} 1-0


[Site "https://www.chess.com"]

[Event "Titled Tuesday Blitz July 4 Late 2023"]
[White "Principe, Alexander"]
[Black "Ozer, Omer Faruk"]
[WhiteFideId "3804542"]
[BlackFideId "6354564"]
[WhiteElo "2512"]
[BlackElo "2722"]
[Result "0-1"]
[Round "2"]
[TimeControl "180+2"]
[Date "2023.07.04"]
[WhiteClock "0:00:43"]
[BlackClock "0:01:20"]
[Board "56"]

1. e4 {[%clk 0:03:00]}  c5 {[%clk 0:02:57]} 2. Nf3 {[%clk 0:02:59]}  e6 {[%clk 0:02:57]} 3. d4 {[%clk 0:02:59]}  cxd4 {[%clk 0:02:58]} 4. Nxd4 {[%clk 0:03:00]}  a6 {[%clk 0:02:59]} 5. Nc3 {[%clk 0:03:00]}  b5 {[%clk 0:02:55]} 6. Be3 {[%clk 0:02:53]}  Bb7 {[%clk 0:02:55]} 7. f3 {[%clk 0:02:53]}  Nc6 {[%clk 0:02:48]} 8. Qd2 {[%clk 0:02:53]}  Qc7 {[%clk 0:02:39]} 9. Be2 {[%clk 0:02:52]}  Nf6 {[%clk 0:02:37]} 10. g4 {[%clk 0:02:46]}  Nxd4 {[%clk 0:02:34]} 11. Bxd4 {[%clk 0:02:46]}  Bd6 {[%clk 0:02:22]} 12. O-O-O {[%clk 0:02:35]}  Rc8 {[%clk 0:02:14]} 13. Kb1 {[%clk 0:02:01]}  Bf4 {[%clk 0:02:09]} 14. Qd3 {[%clk 0:01:59]}  d6 {[%clk 0:02:01]} 15. h4 {[%clk 0:01:39]}  O-O {[%clk 0:01:55]} 16. a3 {[%clk 0:01:32]}  Nd7 {[%clk 0:01:53]} 17. g5 {[%clk 0:01:17]}  Ne5 {[%clk 0:01:51]} 18. Bxe5 {[%clk 0:01:16]}  Bxe5 {[%clk 0:01:52]} 19. Na2 {[%clk 0:01:13]}  a5 {[%clk 0:01:42]} 20. c3 {[%clk 0:01:07]}  Ba6 {[%clk 0:01:38]} 21. h5 {[%clk 0:01:06]}  Rb8 {[%clk 0:01:23]} 22. g6 {[%clk 0:00:47]}  b4 {[%clk 0:01:23]} 23. Qxa6 {[%clk 0:00:45]}  bxc3 {[%clk 0:01:23]} 24. Bd3 {[%clk 0:00:43]}  Rxb2+ {[%clk 0:01:22]} 25. Ka1 {[%clk 0:00:43]}  c2 {[%clk 0:01:20]} 26. Qc8 {[%clk 0:00:43]}  Rb1# {[%clk 0:01:20]} 0-1


[Site "https://www.chess.com"]

[Event "Titled Tuesday Blitz July 4 Late 2023"]
[White "Hamitevici, Vladimir"]
[Black "Ashraf, Artin"]
[WhiteFideId "13902393"]
[BlackFideId "22514805"]
[WhiteElo "2493"]
[BlackElo "2713"]
[Result "0-1"]
[Round "2"]
[TimeControl "180+2"]
[Date "2023.07.04"]
[WhiteClock "0:00:01"]
[BlackClock "0:00:03"]
[Board "57"]

1. e4 {[%clk 0:02:59]}  c5 {[%clk 0:02:59]} 2. Nf3 {[%clk 0:02:56]}  d6 {[%clk 0:02:59]} 3. Nc3 {[%clk 0:02:54]}  a6 {[%clk 0:02:59]} 4. Be2 {[%clk 0:02:46]}  Nf6 {[%clk 0:02:53]} 5. O-O {[%clk 0:02:41]}  Nc6 {[%clk 0:02:49]} 6. d4 {[%clk 0:02:41]}  cxd4 {[%clk 0:02:49]} 7. Nxd4 {[%clk 0:02:42]}  e6 {[%clk 0:02:45]} 8. Be3 {[%clk 0:02:36]}  Bd7 {[%clk 0:02:43]} 9. f4 {[%clk 0:02:31]}  Be7 {[%clk 0:02:40]} 10. Kh1 {[%clk 0:02:26]}  O-O {[%clk 0:02:39]} 11. Bf3 {[%clk 0:02:21]}  Rc8 {[%clk 0:02:37]} 12. Qe1 {[%clk 0:02:15]}  b5 {[%clk 0:02:30]} 13. a3 {[%clk 0:02:09]}  Qc7 {[%clk 0:01:49]} 14. Rd1 {[%clk 0:02:04]}  Nxd4 {[%clk 0:01:48]} 15. Bxd4 {[%clk 0:02:05]}  e5 {[%clk 0:01:48]} 16. Be3 {[%clk 0:02:01]}  a5 {[%clk 0:01:43]} 17. fxe5 {[%clk 0:01:49]}  dxe5 {[%clk 0:01:43]} 18. Bg5 {[%clk 0:01:50]}  Bc6 {[%clk 0:01:28]} 19. Qg3 {[%clk 0:01:31]}  Kh8 {[%clk 0:01:23]} 20. Nd5 {[%clk 0:00:55]}  Bxd5 {[%clk 0:01:15]} 21. exd5 {[%clk 0:00:56]}  Ne8 {[%clk 0:01:16]} 22. c3 {[%clk 0:00:41]}  f5 {[%clk 0:01:10]} 23. Rde1 {[%clk 0:00:23]}  Bxg5 {[%clk 0:01:01]} 24. Qxg5 {[%clk 0:00:22]}  Nd6 {[%clk 0:01:02]} 25. Qg3 {[%clk 0:00:14]}  e4 {[%clk 0:00:56]} 26. Be2 {[%clk 0:00:13]}  Qe7 {[%clk 0:00:54]} 27. Rd1 {[%clk 0:00:12]}  g6 {[%clk 0:00:49]} 28. Rd4 {[%clk 0:00:11]}  Rfe8 {[%clk 0:00:45]} 29. h4 {[%clk 0:00:11]}  Qe5 {[%clk 0:00:44]} 30. Qxe5+ {[%clk 0:00:10]}  Rxe5 {[%clk 0:00:45]} 31. g4 {[%clk 0:00:08]}  Rc5 {[%clk 0:00:39]} 32. gxf5 {[%clk 0:00:07]}  gxf5 {[%clk 0:00:38]} 33. Rfd1 {[%clk 0:00:06]}  f4 {[%clk 0:00:38]} 34. Bg4 {[%clk 0:00:06]}  Rc4 {[%clk 0:00:33]} 35. Be6 {[%clk 0:00:04]}  e3 {[%clk 0:00:28]} 36. Kg2 {[%clk 0:00:04]}  e2 {[%clk 0:00:08]} 37. Re1 {[%clk 0:00:04]}  Rxd4 {[%clk 0:00:08]} 38. cxd4 {[%clk 0:00:05]}  Re3 {[%clk 0:00:09]} 39. Bg4 {[%clk 0:00:03]}  Rg3+ {[%clk 0:00:09]} 40. Kf2 {[%clk 0:00:03]}  Rxg4 {[%clk 0:00:07]} 41. Rxe2 {[%clk 0:00:04]}  Rg6 {[%clk 0:00:06]} 42. Re7 {[%clk 0:00:02]}  Rf6 {[%clk 0:00:03]} 43. Kf3 {[%clk 0:00:02]}  Kg8 {[%clk 0:00:04]} 44. Ra7 {[%clk 0:00:02]}  a4 {[%clk 0:00:04]} 45. h5 {[%clk 0:00:02]}  Rf7 {[%clk 0:00:03]} 46. Ra6 {[%clk 0:00:02]}  Rd7 {[%clk 0:00:02]} 47. Rc6 {[%clk 0:00:02]}  Kf7 {[%clk 0:00:01]} 48. Kxf4 {[%clk 0:00:03]}  Ke7 {[%clk 0:00:02]} 49. Ke5 {[%clk 0:00:03]}  Nc4+ {[%clk 0:00:03]} 50. Ke4 {[%clk 0:00:04]}  Nxb2 {[%clk 0:00:04]} 51. Rh6 {[%clk 0:00:03]}  Kd8 {[%clk 0:00:03]} 52. d6 {[%clk 0:00:03]}  Nc4 {[%clk 0:00:03]} 53. Kd5 {[%clk 0:00:04]}  Rxd6+ {[%clk 0:00:03]} 54. Rxd6+ {[%clk 0:00:03]}  Nxd6 {[%clk 0:00:04]} 55. Kc5 {[%clk 0:00:03]}  Kd7 {[%clk 0:00:04]} 56. h6 {[%clk 0:00:04]}  Kc7 {[%clk 0:00:04]} 57. Kd5 {[%clk 0:00:01]}  b4 {[%clk 0:00:03]} 0-1


[Site "https://www.chess.com"]

[Event "Titled Tuesday Blitz July 4 Late 2023"]
[White "Kushko, Dmitriy"]
[Black "Toniutti, Ezio"]
[WhiteFideId "14162261"]
[BlackFideId "113034"]
[WhiteElo "2710"]
[BlackElo "2490"]
[Result "1-0"]
[Round "2"]
[TimeControl "180+2"]
[Date "2023.07.04"]
[WhiteClock "0:01:01"]
[BlackClock "0:00:11"]
[Board "58"]

1. Nf3 {[%clk 0:03:00]}  d5 {[%clk 0:02:53]} 2. g3 {[%clk 0:03:00]}  Nf6 {[%clk 0:02:52]} 3. Bg2 {[%clk 0:02:59]}  c6 {[%clk 0:02:53]} 4. O-O {[%clk 0:02:59]}  Bf5 {[%clk 0:02:53]} 5. c4 {[%clk 0:02:59]}  e6 {[%clk 0:02:53]} 6. Qb3 {[%clk 0:02:59]}  Qb6 {[%clk 0:02:52]} 7. d3 {[%clk 0:02:58]}  Nbd7 {[%clk 0:02:52]} 8. cxd5 {[%clk 0:02:58]}  exd5 {[%clk 0:02:50]} 9. Qc2 {[%clk 0:02:58]}  Be7 {[%clk 0:02:47]} 10. Nc3 {[%clk 0:02:58]}  O-O {[%clk 0:02:46]} 11. e4 {[%clk 0:02:58]}  Be6 {[%clk 0:02:45]} 12. Be3 {[%clk 0:02:55]}  Qa5 {[%clk 0:02:40]} 13. Nd4 {[%clk 0:02:54]}  Bg4 {[%clk 0:02:23]} 14. h3 {[%clk 0:02:40]}  c5 {[%clk 0:02:13]} 15. Nb3 {[%clk 0:02:27]}  Qd8 {[%clk 0:02:00]} 16. hxg4 {[%clk 0:02:16]}  d4 {[%clk 0:01:54]} 17. g5 {[%clk 0:02:00]}  Ng4 {[%clk 0:01:42]} 18. Nxd4 {[%clk 0:01:58]}  cxd4 {[%clk 0:01:41]} 19. Bxd4 {[%clk 0:01:59]}  Bxg5 {[%clk 0:01:40]} 20. Qe2 {[%clk 0:01:52]}  h5 {[%clk 0:01:28]} 21. e5 {[%clk 0:01:40]}  Re8 {[%clk 0:01:21]} 22. f4 {[%clk 0:01:34]}  Be7 {[%clk 0:01:18]} 23. Bxb7 {[%clk 0:01:30]}  Rb8 {[%clk 0:01:18]} 24. Bf3 {[%clk 0:01:17]}  Nc5 {[%clk 0:01:09]} 25. Nd5 {[%clk 0:01:17]}  Ne6 {[%clk 0:00:58]} 26. Bxa7 {[%clk 0:01:15]}  Bc5+ {[%clk 0:00:47]} 27. Bxc5 {[%clk 0:01:14]}  Nxc5 {[%clk 0:00:48]} 28. d4 {[%clk 0:01:08]}  Ne6 {[%clk 0:00:45]} 29. Rad1 {[%clk 0:01:08]}  Qa5 {[%clk 0:00:41]} 30. b4 {[%clk 0:01:08]}  Qa3 {[%clk 0:00:36]} 31. Rd3 {[%clk 0:01:08]}  Qa6 {[%clk 0:00:32]} 32. Rfd1 {[%clk 0:01:08]}  Red8 {[%clk 0:00:29]} 33. Ne7+ {[%clk 0:01:02]}  Kf8 {[%clk 0:00:24]} 34. Nc6 {[%clk 0:01:03]}  Rbc8 {[%clk 0:00:18]} 35. Nxd8 {[%clk 0:01:02]}  Rxd8 {[%clk 0:00:11]} 36. d5 {[%clk 0:01:01]} 1-0


[Site "https://www.chess.com"]

[Event "Titled Tuesday Blitz July 4 Late 2023"]
[White "Pulvett Marin, Daniel Eduardo"]
[Black "Kazmin_Semyon"]
[WhiteFideId "3900410"]
[WhiteElo "2698"]
[BlackElo "2476"]
[Result "1-0"]
[Round "2"]
[TimeControl "180+2"]
[Date "2023.07.04"]
[WhiteClock "0:00:13"]
[BlackClock "0:00:09"]
[Board "59"]

1. e4 {[%clk 0:03:00]}  d5 {[%clk 0:02:56]} 2. exd5 {[%clk 0:02:59]}  Qxd5 {[%clk 0:02:57]} 3. Nc3 {[%clk 0:02:57]}  Qd8 {[%clk 0:02:57]} 4. d4 {[%clk 0:02:55]}  Nf6 {[%clk 0:02:58]} 5. Nf3 {[%clk 0:02:54]}  Bg4 {[%clk 0:02:58]} 6. h3 {[%clk 0:02:54]}  Bxf3 {[%clk 0:02:58]} 7. Qxf3 {[%clk 0:02:52]}  c6 {[%clk 0:02:59]} 8. g4 {[%clk 0:02:44]}  e6 {[%clk 0:02:50]} 9. g5 {[%clk 0:02:43]}  Nd5 {[%clk 0:02:50]} 10. Bd2 {[%clk 0:02:42]}  Nd7 {[%clk 0:02:47]} 11. Bc4 {[%clk 0:02:32]}  Be7 {[%clk 0:02:46]} 12. h4 {[%clk 0:02:30]}  b5 {[%clk 0:02:32]} 13. Bd3 {[%clk 0:02:24]}  Qb6 {[%clk 0:02:22]} 14. Nxd5 {[%clk 0:02:19]}  cxd5 {[%clk 0:02:23]} 15. c3 {[%clk 0:02:20]}  b4 {[%clk 0:02:19]} 16. h5 {[%clk 0:02:17]}  f5 {[%clk 0:01:25]} 17. gxf6 {[%clk 0:02:06]}  Bxf6 {[%clk 0:01:22]} 18. Kf1 {[%clk 0:01:59]}  bxc3 {[%clk 0:01:18]} 19. bxc3 {[%clk 0:01:59]}  Qb2 {[%clk 0:01:12]} 20. Rd1 {[%clk 0:01:58]}  O-O {[%clk 0:01:07]} 21. Qe2 {[%clk 0:01:57]}  e5 {[%clk 0:01:03]} 22. Bf5 {[%clk 0:01:30]}  Rad8 {[%clk 0:00:39]} 23. h6 {[%clk 0:01:18]}  g6 {[%clk 0:00:34]} 24. Qg4 {[%clk 0:01:16]}  Qb5+ {[%clk 0:00:27]} 25. Kg1 {[%clk 0:01:14]}  exd4 {[%clk 0:00:23]} 26. Re1 {[%clk 0:00:59]}  Kh8 {[%clk 0:00:22]} 27. Be6 {[%clk 0:00:24]}  dxc3 {[%clk 0:00:18]} 28. Bf4 {[%clk 0:00:23]}  c2 {[%clk 0:00:15]} 29. Rh3 {[%clk 0:00:19]}  Ne5 {[%clk 0:00:13]} 30. Rxe5 {[%clk 0:00:16]}  Bxe5 {[%clk 0:00:09]} 31. Bxe5+ {[%clk 0:00:13]} 1-0


[Site "https://www.chess.com"]